fUSD/lending_fUSD_20260112
["ID","MTS","AMOUNT","RATE_DAILY","PERIOD"]
[401467003,1768246238195,-574.28771375,0.00014999,2]
[401467005,1768246238207,-574.28771375,0.00014999,2]
[401467007,1768246238219,-574.28771375,0.00014999,2]
[401467009,1768246238231,-574.28771375,0.00014999,2]
[401467011,1768246238242,-574.28771375,0.00014999,2]
[401467014,1768246238254,-574.28771375,0.00014999,2]
[401467016,1768246238266,-574.28771375,0.00014999,2]
[401467018,1768246238277,-574.28771375,0.00014999,2]
[401467020,1768246238289,-574.28771375,0.00014999,2]
[401467022,1768246238301,-574.28771375,0.00014999,2]
[401467025,1768246238313,-574.28771375,0.00014999,2]
[401467027,1768246238324,-561.8448133,0.00014999,2]
[401467029,1768246238337,-561.8448133,0.00014999,2]
[401467031,1768246238348,-561.8448133,0.00014999,2]
[401467033,1768246238359,-561.8448133,0.00014999,2]
[401467036,1768246238371,-561.8448133,0.00014999,2]
[401467038,1768246238382,-561.8448133,0.00014999,2]
[401467040,1768246238393,-561.8448133,0.00014999,2]
[401467042,1768246238405,-561.8448133,0.00014999,2]
[401467045,1768246238417,-561.8448133,0.00014999,2]
[401467047,1768246238428,-561.8448133,0.00014999,2]
[401467049,1768246238439,-561.8448133,0.00014999,2]
[401467050,1768246238451,-561.84481329,0.00014999,2]
[401467051,1768246238463,-10000.0,0.00015,2]
[401467052,1768246238475,-1963.34171095,0.00015,2]
[401467053,1768246238487,-4889.760782,0.00015,2]
[401467054,1768246238499,-1000.0,0.00015078,2]
[401467055,1768246238511,-1769.1,0.00015153,2]
[401467056,1768246238523,-289.64,0.00015218,2]
[401467057,1768246238535,-150.0,0.00015218,2]
[401467058,1768246238547,-500.0,0.00015227,2]
[401467059,1768246238559,-6704.96586498,0.0001532,2]
[401467060,1768246238571,-367.0678,0.00015327,2]
[401467062,1768246238584,-1680.0,0.00015399,2]
[401467065,1768246238597,-8545.84343615,0.0001589,2]
[401467067,1768246238609,-2543.90162873,0.0001589,2]
[401467069,1768246238621,-556.81,0.000159,2]
[401467071,1768246238632,-205.43,0.00015919,2]
[401467074,1768246238645,-193.83116704,0.00015923,2]
[401467076,1768246238659,-190.556919,0.00015923,2]
[401467078,1768246238671,-393.86444271,0.00015923,2]
[401467080,1768246238683,-163.36655648,0.00015923,2]
[401467083,1768246238695,-151.0,0.00015986,2]
[401467085,1768246238706,-150.0,0.00015989,2]
[401467087,1768246238718,-1000000.0,0.00015989,2]
[401467089,1768246238731,-2148.9329,0.0001599,2]
[401467092,1768246238743,-379.9949,0.0001599,2]
[401467094,1768246238755,-40117.8163,0.0001599,2]
[401467096,1768246238766,-2500.0,0.00016084,2]
[401467098,1768246238778,-193.65,0.00016088,2]
[401467100,1768246238791,-8545.84343606,0.00016113,2]
[401467102,1768246238803,-2543.90162866,0.00016113,2]
[401467104,1768246238816,-150.0,0.00016123,2]
[401467106,1768246238828,-165.72926193,0.00016174,2]
[401467108,1768246238840,-151.0,0.00016181,2]
[401467110,1768246238852,-271.119606,0.00016181,2]
[401467112,1768246238864,-3471.620107,0.00016184,2]
[401467114,1768246238877,-26602.20012564,0.00016184,2]
[401467117,1768246238892,-300.0,0.00016184,2]
[401467120,1768246238912,-714.46538978,0.00016184,2]
[401467195,1768246239664,-6869.12374908,0.00016184,2]
[401467198,1768246239676,-478.14914354,0.00016184,2]
[401467225,1768246239935,-19549.14955814,0.00016184,2]
[401467232,1768246239990,-421.90564647,0.00016184,2]
[401467607,1768246243681,-151.0,0.00015777,2]
[401467609,1768246243693,-151.0,0.00015777,2]
[401467612,1768246243707,-5231.00023242,0.00016184,2]
[401467682,1768246244479,-177.82062332,0.0001589,2]
[401467684,1768246244491,-3616.22227568,0.00016184,2]
[401467687,1768246244505,-335.7,0.00016184,2]
[401467768,1768246246075,-34.40040065,0.00016184,2]
[401467769,1768246246086,-1715.1,0.00016184,2]
[401467770,1768246246097,-1288.95483898,0.00016184,2]
[401467771,1768246246108,-2630.64669746,0.00016184,2]
[401467772,1768246246154,-1042.00440392,0.00016184,2]
[401467773,1768246482407,165.06943939,0.000201,30]
[401467778,1768246789237,150.0,0.000201,30]
[401467783,1768247357093,-168.21,0.0001214,2]
[401467784,1768247357114,-166.66,0.00014191,2]
[401467785,1768247357133,-189.63,0.0001427,2]
[401467786,1768247357152,-156.36,0.00014282,2]
[401467787,1768247357172,-166.66,0.0001449,2]
[401467788,1768247357192,-500.0,0.00014544,2]
[401467789,1768247357213,-3240.0,0.00014561,2]
[401467790,1768247357232,-169.38,0.00014604,2]
[401467791,1768247357253,-632.867054,0.00014626,2]
[401467796,1768247431778,-230.93569906,0.00014574,2]
[401467797,1768247431788,-922.81905344,0.00014574,2]
[401467798,1768247431798,-1200.0,0.00014625,2]
[401467799,1768247431809,-6476.882946,0.00014626,2]
[401467800,1768247431818,-1445.49,0.00014682,2]
[401467801,1768247431827,-1000.0,0.00014727,2]
[401467802,1768247431836,-166.66,0.00014789,2]
[401467803,1768247431846,-177.82062332,0.00014896,2]
[401467804,1768247431854,-11133.40959767,0.00014898,2]
[401467805,1768247431875,-9035.50000001,0.00014898,2]
[401467806,1768247431886,-304.60354086,0.00014898,2]
[401467807,1768247431897,-878.47389663,0.00014898,2]
[401467808,1768247431908,-1929.27379233,0.00014898,2]
[401467809,1768247431923,-264.49112401,0.00014898,2]
[401467810,1768247431935,-2469.23845557,0.00014898,2]
[401467811,1768247431956,-461.44401143,0.00014898,2]
[401467831,1768247437785,-455.18363071,0.00014897,2]
[401467832,1768247437795,-183.31131085,0.00014897,2]
[401467833,1768247437805,-271.48160128,0.00014897,2]
[401467834,1768247437815,-500.0,0.00014897,2]
[401467835,1768247437827,-500.0,0.00014897,2]
[401467836,1768247437838,-500.0,0.00014897,2]
[401467837,1768247437849,-217.09692119,0.00014897,2]
[401467838,1768247437859,-500.0,0.00014897,2]
[401467839,1768247437869,-500.0,0.00014897,2]
[401467840,1768247437878,-500.0,0.00014897,2]
[401467841,1768247437889,-500.0,0.00014897,2]
[401467842,1768247437898,-500.0,0.00014897,2]
[401467843,1768247437909,-500.0,0.00014897,2]
[401467844,1768247437918,-500.0,0.00014897,2]
[401467845,1768247437928,-500.0,0.00014897,2]
[401467846,1768247437938,-500.0,0.00014897,2]
[401467847,1768247437948,-500.0,0.00014897,2]
[401467848,1768247437959,-500.0,0.00014897,2]
[401467849,1768247437969,-500.0,0.00014897,2]
[401467850,1768247437979,-500.0,0.00014897,2]
[401467851,1768247437989,-500.0,0.00014897,2]
[401467852,1768247438002,-500.0,0.00014897,2]
[401467853,1768247438012,-260.65392549,0.00014897,2]
[401467854,1768247438023,-239.34607451,0.00014897,2]
[401467855,1768247438033,-308.92877819,0.00014897,2]
[401467856,1768247438043,-500.0,0.00014897,2]
[401467857,1768247438053,-500.0,0.00014897,2]
[401467858,1768247438063,-500.0,0.00014897,2]
[401467859,1768247438073,-457.6044078,0.00014897,2]
[401467860,1768247438084,-14731.67281094,0.00014898,2]
[401467861,1768247438096,-4038.49465,0.00014898,2]
[401467862,1768247438108,-650.0,0.00014898,2]
[401467865,1768247438128,-701.20532303,0.00014898,2]
[401467988,1768247439935,-3011.72215339,0.00014898,2]
[401467989,1768247439988,-292.97064102,0.00014898,2]
[401467990,1768247440002,-595.82913683,0.00014898,2]
[401467994,1768247444012,-352.00649617,0.00014898,2]
[401467995,1768247444025,-631.49851381,0.00014898,2]
[401467996,1768247444036,-16270.2561666,0.00014898,2]
[401467997,1768247444065,-9898.5,0.00014898,2]
[401467998,1768247444119,-1423.75678316,0.00014898,2]
[401468004,1768247445738,-4646.1776527,0.00014898,2]
[401468005,1768247445793,-5000.0,0.00014898,2]
[401468006,1768247445806,-794.30477733,0.00014898,2]
[401468007,1768247445953,-1923.51756997,0.00014898,2]
[401468008,1768247446026,-1404.26040629,0.00014898,2]
[401468016,1768247827575,479.05,0.00010928,2]
[401468017,1768247827756,479.05,0.0001111,2]
[401468018,1768247828001,479.05,0.00011292,2]
[401468019,1768247828227,479.05,0.00011473,2]
[401468020,1768247829095,479.05,0.00011655,2]
[401468021,1768247830799,-178.7707599,0.00011837,2]
[401468022,1768247832353,-254.52455885,0.00011837,2]
[401468023,1768247835173,-45.75468125,0.00011837,2]
[401468024,1768247835196,-303.69521544,0.00012018,2]
[401468026,1768248299554,-248.0,0.00012018,2]
[401468027,1768248299579,-175.35478456,0.00012018,2]
[401468028,1768248300318,-183.70388876,0.00012073,2]
[401468029,1768248382834,-19.90275367,0.00012073,2]
[401468030,1768248382860,-243.20307817,0.000122,2]
[401468031,1768248450788,-235.84692183,0.000122,2]
[401468034,1768248550222,-282.63596466,0.00012321,2]
[401468035,1768248552431,-948.14402246,0.00012321,2]
[401468036,1768248554633,-179.84290307,0.00012321,2]
[401468037,1768248556256,-154.718,0.00012321,2]
[401468038,1768248558383,-500.0,0.00012321,2]
[401468039,1768248559915,-250.0,0.00012321,2]
[401468040,1768248562045,-406.73496464,0.00012321,2]
[401468041,1768248565059,-265.48703536,0.00012321,2]
[401468042,1768248566920,-193.0,0.00012321,2]
[401468049,1768248632162,-193.0,0.00012259,2]
[401468050,1768248632172,-2163.45036594,0.00012321,2]
[401468051,1768248632181,-479.05,0.00012382,2]
[401468052,1768248632190,-479.05,0.00012563,2]
[401468053,1768248632200,-479.05,0.00012745,2]
[401468054,1768248632209,-300.0,0.00012877,2]
[401468055,1768248632219,-1200.0,0.00012877,2]
[401468056,1768248632228,-300.0,0.00012877,2]
[401468057,1768248632238,-12277.31847279,0.00012878,2]
[401468059,1768248632248,-479.05,0.00012926,2]
[401468061,1768248632257,-4320.43336667,0.00012981,2]
[401468063,1768248632269,-6053.8,0.00012981,2]
[401468067,1768248632303,-3894.1177145,0.00012981,2]
[401468074,1768248632359,-4655.84505265,0.00012981,2]
[401468076,1768248632372,-565.41868301,0.00012981,2]
[401468085,1768248638081,-500.0,0.00012925,2]
[401468086,1768248638091,-92.47286909,0.00012925,2]
[401468087,1768248638117,-407.52713091,0.00012925,2]
[401468088,1768248638127,-500.0,0.00012925,2]
[401468089,1768248638136,-500.0,0.00012925,2]
[401468090,1768248638145,-500.0,0.00012925,2]
[401468091,1768248638155,-500.0,0.00012925,2]
[401468092,1768248638164,-500.0,0.00012925,2]
[401468094,1768248638173,-500.0,0.00012925,2]
[401468095,1768248638183,-500.0,0.00012925,2]
[401468097,1768248638192,-500.0,0.00012925,2]
[401468099,1768248638202,-570.77385317,0.00012925,2]
[401468101,1768248638211,-500.0,0.00012925,2]
[401468103,1768248638220,-500.0,0.00012925,2]
[401468105,1768248638229,-500.0,0.00012925,2]
[401468108,1768248638239,-500.0,0.00012925,2]
[401468110,1768248638249,-500.0,0.00012925,2]
[401468112,1768248638258,-500.0,0.00012925,2]
[401468114,1768248638267,-500.0,0.00012925,2]
[401468115,1768248638276,-500.0,0.00012925,2]
[401468118,1768248638286,-500.0,0.00012925,2]
[401468120,1768248638296,-500.0,0.00012925,2]
[401468122,1768248638309,-500.0,0.00012925,2]
[401468124,1768248638319,-500.0,0.00012925,2]
[401468126,1768248638329,-500.0,0.00012925,2]
[401468128,1768248638339,-500.0,0.00012925,2]
[401468130,1768248638349,-318.6285415,0.0001298,2]
[401468131,1768248638358,-481.99314779,0.00012981,2]
[401468133,1768248638368,-28205.87106694,0.00012981,2]
[401468135,1768248638378,-23210.69526907,0.00012981,2]
[401468138,1768248638390,-632.28343934,0.00012981,2]
[401468331,1768248640325,-7301.2,0.00012981,2]
[401468333,1768248640336,-5353.61669159,0.00012981,2]
[401468335,1768248640346,-162.91397516,0.00013036,2]
[401468337,1768248640356,-150.0,0.00013094,2]
[401468339,1768248640365,-479.05,0.00013108,2]
[401468341,1768248640375,-500.0,0.0001325,2]
[401468343,1768248640385,-479.05,0.0001329,2]
[401468345,1768248640395,-1870.41,0.00013308,2]
[401468347,1768248640405,-479.05,0.00013471,2]
[401468349,1768248640414,-4033.41,0.00013483,2]
[401468351,1768248640425,-334.08,0.00013557,2]
[401468353,1768248640434,-479.05,0.00013653,2]
[401468355,1768248640443,-155.53,0.00013665,2]
[401468357,1768248640453,-200.0,0.00013689,2]
[401468359,1768248640462,-166.44,0.00013699,2]
[401468361,1768248640471,-479.05,0.00013835,2]
[401468363,1768248640481,-500.0,0.00013836,2]
[401468365,1768248640490,-479.05,0.00014016,2]
[401468367,1768248640500,-420.0,0.00014124,2]
[401468369,1768248640509,-1680.0,0.00014165,2]
[401468371,1768248640519,-479.05,0.00014198,2]
[401468373,1768248640528,-150.0,0.00014248,2]
[401468375,1768248640538,-500.0,0.00014248,2]
[401468377,1768248640547,-500.0,0.00014249,2]
[401468379,1768248640556,-500.0,0.00014249,2]
[401468381,1768248640565,-150.0,0.00014249,2]
[401468383,1768248640575,-206.70817154,0.00014249,2]
[401468385,1768248640584,-500.0,0.00014249,2]
[401468387,1768248640593,-500.0,0.00014249,2]
[401468389,1768248640602,-500.0,0.00014249,2]
[401468392,1768248640612,-500.0,0.00014249,2]
[401468394,1768248640621,-150.0,0.00014249,2]
[401468396,1768248640630,-150.0,0.00014249,2]
[401468398,1768248640640,-500.0,0.00014249,2]
[401468400,1768248640649,-150.0,0.00014249,2]
[401468402,1768248640658,-197.17265685,0.00014249,2]
[401468404,1768248640667,-559.0,0.00014249,2]
[401468406,1768248640676,-500.0,0.00014303,2]
[401468408,1768248640686,-500.0,0.00014304,2]
[401468410,1768248640695,-500.0,0.00014304,2]
[401468412,1768248640703,-500.0,0.00014304,2]
[401468414,1768248640712,-500.0,0.00014304,2]
[401468415,1768248640721,-22.90499836,0.00014304,2]
[401468419,1768248640741,-477.09500164,0.00014304,2]
[401468421,1768248640750,-500.0,0.00014304,2]
[401468422,1768248640759,-500.0,0.00014304,2]
[401468425,1768248640770,-256.07205022,0.00014304,2]
[401468426,1768248640779,-559.0,0.00014304,2]
[401468429,1768248640788,-500.0,0.00014304,2]
[401468430,1768248640798,-500.0,0.00014358,2]
[401468433,1768248640807,-500.0,0.00014359,2]
[401468435,1768248640817,-500.0,0.00014359,2]
[401468437,1768248640826,-500.0,0.00014359,2]
[401468438,1768248640836,-550.0,0.00014359,2]
[401468440,1768248640845,-500.0,0.00014359,2]
[401468443,1768248640855,-500.0,0.00014359,2]
[401468444,1768248640865,-500.0,0.00014359,2]
[401468446,1768248640874,-559.0,0.00014359,2]
[401468448,1768248640883,-479.05,0.0001438,2]
[401468449,1768248640892,-500.0,0.00014412,2]
[401468451,1768248640901,-500.0,0.00014413,2]
[401468453,1768248640911,-350.0,0.00014413,2]
[401468455,1768248640920,-500.0,0.00014413,2]
[401468457,1768248640929,-372.79325491,0.00014413,2]
[401468459,1768248640938,-500.0,0.00014413,2]
[401468461,1768248640947,-150.0,0.00014413,2]
[401468463,1768248640956,-559.0,0.00014413,2]
[401468465,1768248640966,-337.66057613,0.00014468,2]
[401468467,1768248640977,-500.0,0.00014468,2]
[401468469,1768248640986,-500.0,0.00014468,2]
[401468471,1768248640995,-559.0,0.00014468,2]
[401468473,1768248641004,-223.58892257,0.00014473,2]
[401468475,1768248641014,-150.0,0.00014478,2]
[401468477,1768248641023,-193.65,0.00014522,2]
[401468479,1768248641033,-500.0,0.00014523,2]
[401468481,1768248641042,-500.0,0.00014523,2]
[401468483,1768248641051,-559.0,0.00014523,2]
[401468485,1768248641060,-483.0,0.00014524,2]
[401468487,1768248641070,-151.0,0.00014538,2]
[401468489,1768248641080,-60773.10829679,0.00014541,2]
[401468491,1768248641092,-1421.50990077,0.00014541,2]
[401468493,1768248641104,-553.92900001,0.00014541,2]
[401468496,1768248641115,-337.90256398,0.00014541,2]
[401468498,1768248641126,-1003.77818293,0.00014541,2]
[401468500,1768248641136,-839.15,0.00014541,2]
[401468830,1768248644398,-1445.93,0.00014541,2]
[401468839,1768248644518,-18.80785314,0.00014541,2]
[401468976,1768248645859,-337.24381303,0.00014541,2]
[401469041,1768248932482,999.0,0.00013726,3]
[401469047,1768249255943,168.73,0.00010903,2]
[401469053,1768249709173,268.03275496,0.000107,2]
[401469054,1768249716014,819.03553865,0.0001,2]
[401469055,1768249716041,3496.59078738,0.0001,2]
[401469057,1768249770109,-3240.0,0.00013446,2]
[401469058,1768249770131,-170.59,0.00013462,2]
[401469059,1768249770153,-1000.0,0.00013484,2]
[401469060,1768249770172,-787.25604664,0.000135,2]
[401469061,1768249770192,-155.04,0.00013642,2]
[401469062,1768249770212,-36.88443736,0.00013726,2]
[401469078,1768249832006,-163.11556264,0.00013726,2]
[401469080,1768249832016,-478.16586408,0.00013784,2]
[401469081,1768249832027,-126.75508057,0.00013784,2]
[401469082,1768249832036,-170.59,0.0001421,2]
[401469083,1768249832046,-224.70282932,0.00014223,2]
[401469084,1768249832064,-9.5213779,0.00014223,2]
[401469085,1768249832073,-417.5875,0.0001424,2]
[401469086,1768249832082,-96.29713259,0.0001424,2]
[401469087,1768249832095,-6608.70736741,0.0001424,2]
[401469088,1768249832107,-300.0,0.00014249,2]
[401469089,1768249832118,-1200.0,0.00014249,2]
[401469090,1768249832128,-463.0,0.0001425,2]
[401469091,1768249832138,-500.0,0.0001425,2]
[401469092,1768249832147,-9.29263259,0.0001425,2]
[401469093,1768249832159,-140.70736741,0.0001425,2]
[401469094,1768249832168,-150.0,0.0001425,2]
[401469095,1768249832178,-150.0,0.0001425,2]
[401469096,1768249832187,-54.60940562,0.0001425,2]
[401469097,1768249832198,-95.39059438,0.0001425,2]
[401469098,1768249832207,-150.0,0.0001425,2]
[401469099,1768249832217,-150.0,0.0001425,2]
[401469100,1768249832226,-150.0,0.0001425,2]
[401469101,1768249832237,-150.0,0.0001425,2]
[401469102,1768249832247,-199.74900552,0.0001425,2]
[401469103,1768249832259,-4.72559071,0.0001425,2]
[401469104,1768249832282,-145.27440929,0.0001425,2]
[401469105,1768249832292,-150.0,0.0001425,2]
[401469107,1768249832302,-150.0,0.0001425,2]
[401469109,1768249832311,-150.0,0.0001425,2]
[401469111,1768249832320,-500.0,0.0001425,2]
[401469113,1768249832330,-500.0,0.00014258,2]
[401469115,1768249832339,-473.26906906,0.00014258,2]
[401469117,1768249832349,-500.0,0.00014258,2]
[401469119,1768249832358,-500.0,0.00014258,2]
[401469121,1768249832367,-500.0,0.00014258,2]
[401469123,1768249832377,-500.0,0.00014258,2]
[401469125,1768249832386,-500.0,0.00014258,2]
[401469127,1768249832395,-500.0,0.00014258,2]
[401469129,1768249832404,-500.0,0.00014258,2]
[401469131,1768249832414,-500.0,0.00014258,2]
[401469134,1768249832424,-500.0,0.00014258,2]
[401469136,1768249832434,-500.0,0.00014258,2]
[401469138,1768249832443,-500.0,0.00014258,2]
[401469140,1768249832452,-500.0,0.00014258,2]
[401469141,1768249832461,-500.0,0.00014258,2]
[401469143,1768249832471,-500.0,0.00014258,2]
[401469146,1768249832480,-500.0,0.00014258,2]
[401469148,1768249832489,-500.0,0.00014258,2]
[401469149,1768249832498,-500.0,0.00014258,2]
[401469152,1768249832507,-500.0,0.00014258,2]
[401469153,1768249832518,-500.0,0.00014258,2]
[401469156,1768249832527,-500.0,0.00014258,2]
[401469157,1768249832536,-500.0,0.00014258,2]
[401469159,1768249832545,-500.0,0.00014258,2]
[401469162,1768249832554,-500.0,0.00014258,2]
[401469164,1768249832563,-500.0,0.00014258,2]
[401469165,1768249832573,-500.0,0.00014258,2]
[401469168,1768249832582,-500.0,0.00014258,2]
[401469169,1768249832592,-500.0,0.00014258,2]
[401469171,1768249832601,-500.0,0.00014258,2]
[401469174,1768249832611,-500.0,0.00014258,2]
[401469176,1768249832621,-500.0,0.00014258,2]
[401469177,1768249832632,-500.0,0.00014258,2]
[401469179,1768249832642,-500.0,0.00014258,2]
[401469181,1768249832652,-500.0,0.00014258,2]
[401469184,1768249832661,-500.0,0.00014258,2]
[401469185,1768249832671,-500.0,0.00014258,2]
[401469187,1768249832680,-500.0,0.00014258,2]
[401469189,1768249832690,-500.0,0.00014258,2]
[401469192,1768249832699,-500.0,0.00014258,2]
[401469194,1768249832710,-500.0,0.00014258,2]
[401469196,1768249832720,-500.0,0.00014258,2]
[401469198,1768249832731,-500.0,0.00014258,2]
[401469200,1768249832740,-500.0,0.00014258,2]
[401469202,1768249832749,-500.0,0.00014258,2]
[401469204,1768249832759,-500.0,0.00014258,2]
[401469205,1768249832768,-500.0,0.00014258,2]
[401469207,1768249832778,-500.0,0.00014258,2]
[401469209,1768249832787,-500.0,0.00014258,2]
[401469211,1768249832797,-500.0,0.00014258,2]
[401469213,1768249832807,-500.0,0.00014258,2]
[401469216,1768249832817,-500.0,0.00014258,2]
[401469217,1768249832826,-500.0,0.00014258,2]
[401469219,1768249832836,-500.0,0.00014258,2]
[401469222,1768249832845,-500.0,0.00014258,2]
[401469223,1768249832855,-500.0,0.00014258,2]
[401469225,1768249832865,-500.0,0.00014258,2]
[401469227,1768249832874,-500.0,0.00014258,2]
[401469228,1768249832883,-500.0,0.00014258,2]
[401469229,1768249832893,-390.42088488,0.00014258,2]
[401469230,1768249832902,-9438.87964552,0.00014259,2]
[401469231,1768249832911,-195.64030724,0.00014259,2]
[401469232,1768249832921,-835.29859158,0.00014259,2]
[401469233,1768249832933,-1592.17666645,0.00014259,2]
[401469234,1768249832943,-208.63588649,0.00014259,2]
[401469235,1768249832952,-500.0,0.00014301,2]
[401469236,1768249832961,-463.0,0.00014305,2]
[401469237,1768249832970,-500.0,0.00014305,2]
[401469238,1768249832980,-150.0,0.00014305,2]
[401469240,1768249832990,-150.0,0.00014305,2]
[401469242,1768249832999,-150.0,0.00014305,2]
[401469244,1768249833008,-500.0,0.00014305,2]
[401469246,1768249833018,-274.98744705,0.00014333,2]
[401469248,1768249833029,-1114.75594099,0.00014333,2]
[401469250,1768249833039,-271.119606,0.00014337,2]
[401469252,1768249833048,-223.03997905,0.00014339,2]
[401469254,1768249833057,-5602.08447396,0.0001434,2]
[401469257,1768249833072,-13034.98228488,0.0001434,2]
[401469259,1768249833084,-20589.78437754,0.0001434,2]
[401469262,1768249833095,-864.08449454,0.0001434,2]
[401469264,1768249833107,-418.24853192,0.0001434,2]
[401469266,1768249833118,-59103.9529133,0.0001434,2]
[401469268,1768249833129,-1195.98280455,0.0001434,2]
[401469271,1768249833145,-1932.64807024,0.0001434,2]
[401469538,1768249838067,-434.75492254,0.0001434,2]
[401469539,1768249838083,-2238.06278625,0.0001434,2]
[401469540,1768249838095,-4052.34175728,0.0001434,2]
[401469541,1768249838107,-1313.97935092,0.0001434,2]
[401469542,1768249838127,-6931.70542094,0.0001434,2]
[401469543,1768249838139,-3479.79557436,0.0001434,2]
[401469544,1768249838150,-174874.22204399,0.0001434,2]
[401469545,1768249838162,-852.51481247,0.0001434,2]
[401469546,1768249838231,-1304.90056787,0.0001434,2]
[401469547,1768249838248,-465.16280073,0.0001434,2]
[401469548,1768249838260,-2890.27613519,0.0001434,2]
[401469549,1768249838341,-47035.15474192,0.0001434,2]
[401470092,1768249844107,-567.87405092,0.0001434,2]
[401470093,1768249844118,-295.60870062,0.0001434,2]
[401470094,1768249844159,-35897.55,0.0001434,2]
[401470095,1768249844170,-324.598953,0.0001434,2]
[401470096,1768249844864,-1223.16407226,0.0001434,2]
[401470162,1768250440989,1319.0,0.000202,30]
[401470163,1768250575712,158.22685313,0.00013,7]
[401470165,1768250646082,200.0,0.000138,5]
[401470166,1768250651666,400.0,0.000139,5]
[401470167,1768250821369,200.0,0.000138,5]
[401470168,1768250824358,400.0,0.000139,5]
[401470177,1768251032385,-258.37,0.00012725,2]
[401470178,1768251032395,-1646.08,0.00012747,2]
[401470179,1768251032405,-250.0,0.00012777,2]
[401470181,1768251032414,-165.76188916,0.00012807,2]
[401470183,1768251032423,-166.66,0.00012807,2]
[401470185,1768251032433,-500.0,0.00013024,2]
[401470187,1768251032441,-2421.12,0.00013072,2]
[401470189,1768251032450,-166.66,0.00013076,2]
[401470191,1768251032459,-300.0,0.00013181,2]
[401470193,1768251032468,-1200.0,0.00013181,2]
[401470195,1768251032477,-1200.0,0.00013182,2]
[401470197,1768251032486,-1011.39,0.00013182,2]
[401470199,1768251032494,-500.0,0.00013182,2]
[401470201,1768251032502,-500.0,0.00013182,2]
[401470203,1768251032511,-500.0,0.00013182,2]
[401470205,1768251032522,-500.0,0.00013182,2]
[401470207,1768251032532,-500.0,0.00013182,2]
[401470208,1768251032541,-500.0,0.00013182,2]
[401470210,1768251032549,-500.0,0.00013182,2]
[401470212,1768251032559,-500.0,0.00013182,2]
[401470214,1768251032568,-500.0,0.00013182,2]
[401470216,1768251032577,-200.0,0.00013182,2]
[401470218,1768251032588,-500.0,0.00013182,2]
[401470220,1768251032599,-500.0,0.00013182,2]
[401470222,1768251032609,-500.0,0.00013182,2]
[401470224,1768251032618,-500.0,0.00013182,2]
[401470226,1768251032627,-500.0,0.00013182,2]
[401470228,1768251032640,-500.0,0.00013182,2]
[401470230,1768251032649,-500.0,0.00013182,2]
[401470232,1768251032658,-500.0,0.00013182,2]
[401470234,1768251032667,-500.0,0.00013182,2]
[401470237,1768251032677,-500.0,0.00013182,2]
[401470239,1768251032686,-500.0,0.00013182,2]
[401470241,1768251032695,-500.0,0.00013182,2]
[401470243,1768251032704,-500.0,0.00013182,2]
[401470245,1768251032713,-500.0,0.00013182,2]
[401470247,1768251032723,-500.0,0.00013182,2]
[401470249,1768251032732,-500.0,0.00013182,2]
[401470251,1768251032741,-500.0,0.00013182,2]
[401470252,1768251032753,-500.0,0.00013182,2]
[401470255,1768251032762,-500.0,0.00013182,2]
[401470257,1768251032771,-500.0,0.00013182,2]
[401470259,1768251032781,-500.0,0.00013182,2]
[401470261,1768251032789,-167.86548887,0.00013182,2]
[401470263,1768251032798,-500.0,0.00013182,2]
[401470265,1768251032808,-500.0,0.00013182,2]